[Event "Titled Tuesday Blitz November 08 Early 2022"]
[White "Faizrakhmanov, Ramil"]
[Black "Tleptsok, Ruslan"]
[WhiteFideId "24103209"]
[BlackFideId "24104485"]
[WhiteElo "2437"]
[BlackElo "2130"]
[Result "1/2-1/2"]
[Round "08"]
[TimeControl "180+1"]
[Date "2022.11.08"]
[WhiteClock "0:00:05"]
[BlackClock "0:00:48"]

1. d4 {[%clk 0:03:00]}  Nf6 {[%clk 0:02:59]} 2. c4 {[%clk 0:03:01]}  e5 {[%clk 0:02:59]} 3. dxe5 {[%clk 0:03:00]}  Ne4 {[%clk 0:02:59]} 4. Nf3 {[%clk 0:02:59]}  Bb4+ {[%clk 0:02:58]} 5. Nbd2 {[%clk 0:02:58]}  Nc6 {[%clk 0:02:58]} 6. a3 {[%clk 0:02:56]}  Nxd2 {[%clk 0:02:57]} 7. Bxd2 {[%clk 0:02:57]}  Bxd2+ {[%clk 0:02:57]} 8. Qxd2 {[%clk 0:02:58]}  Qe7 {[%clk 0:02:58]} 9. Qc3 {[%clk 0:02:44]}  b6 {[%clk 0:02:58]} 10. e3 {[%clk 0:02:25]}  Bb7 {[%clk 0:02:58]} 11. Be2 {[%clk 0:02:25]}  O-O-O {[%clk 0:02:57]} 12. O-O-O {[%clk 0:02:22]}  Rhe8 {[%clk 0:02:57]} 13. c5 {[%clk 0:02:05]}  Nxe5 {[%clk 0:02:56]} 14. cxb6 {[%clk 0:02:03]}  axb6 {[%clk 0:02:57]} 15. Kb1 {[%clk 0:01:57]}  Nxf3 {[%clk 0:02:53]} 16. Bxf3 {[%clk 0:01:54]}  Bxf3 {[%clk 0:02:42]} 17. gxf3 {[%clk 0:01:54]}  Qe5 {[%clk 0:02:41]} 18. Qc2 {[%clk 0:01:41]}  d5 {[%clk 0:02:29]} 19. Qxh7 {[%clk 0:01:34]}  d4 {[%clk 0:02:22]} 20. f4 {[%clk 0:01:25]}  Qf6 {[%clk 0:02:12]} 21. Qh3+ {[%clk 0:01:15]}  Kb8 {[%clk 0:02:10]} 22. Qf3 {[%clk 0:01:14]}  dxe3 {[%clk 0:02:04]} 23. fxe3 {[%clk 0:01:15]}  Qf5+ {[%clk 0:02:04]} 24. Ka1 {[%clk 0:01:14]}  g5 {[%clk 0:01:56]} 25. Qg3 {[%clk 0:01:07]}  Rxd1+ {[%clk 0:01:54]} 26. Rxd1 {[%clk 0:01:06]}  gxf4 {[%clk 0:01:53]} 27. Qxf4 {[%clk 0:01:04]}  Qxf4 {[%clk 0:01:52]} 28. exf4 {[%clk 0:01:05]}  Rh8 {[%clk 0:01:52]} 29. Rd2 {[%clk 0:01:03]}  Rh4 {[%clk 0:01:50]} 30. Rf2 {[%clk 0:01:00]}  c5 {[%clk 0:01:48]} 31. Kb1 {[%clk 0:00:59]}  Kc7 {[%clk 0:01:48]} 32. Kc2 {[%clk 0:01:00]}  Kd6 {[%clk 0:01:48]} 33. Kd3 {[%clk 0:00:52]}  Kd5 {[%clk 0:01:47]} 34. Rd2 {[%clk 0:00:47]}  Rh3+ {[%clk 0:01:45]} 35. Kc2+ {[%clk 0:00:44]}  Ke4 {[%clk 0:01:44]} 36. Rd6 {[%clk 0:00:42]}  Rxh2+ {[%clk 0:01:43]} 37. Kc3 {[%clk 0:00:42]}  b5 {[%clk 0:01:38]} 38. Rf6 {[%clk 0:00:37]}  Rh3+ {[%clk 0:01:35]} 39. Kc2 {[%clk 0:00:37]}  Rh2+ {[%clk 0:01:34]} 40. Kb3 {[%clk 0:00:26]}  Rh3+ {[%clk 0:01:33]} 41. Ka2 {[%clk 0:00:25]}  Rh7 {[%clk 0:01:31]} 42. Rb6 {[%clk 0:00:21]}  b4 {[%clk 0:01:26]} 43. axb4 {[%clk 0:00:21]}  cxb4 {[%clk 0:01:26]} 44. Rxb4+ {[%clk 0:00:22]}  Ke3 {[%clk 0:01:24]} 45. Rc4 {[%clk 0:00:13]}  Rh4 {[%clk 0:01:22]} 46. Ka3 {[%clk 0:00:08]}  f5 {[%clk 0:01:20]} 47. b4 {[%clk 0:00:07]}  Rxf4 {[%clk 0:01:18]} 48. Rc8 {[%clk 0:00:07]}  Rf1 {[%clk 0:01:14]} 49. Kb2 {[%clk 0:00:07]}  f4 {[%clk 0:01:14]} 50. b5 {[%clk 0:00:07]}  Rh1 {[%clk 0:00:58]} 51. b6 {[%clk 0:00:06]}  Rh7 {[%clk 0:00:59]} 52. Rc7 {[%clk 0:00:04]}  Rh6 {[%clk 0:00:55]} 53. b7 {[%clk 0:00:04]}  Rb6+ {[%clk 0:00:53]} 54. Kc3 {[%clk 0:00:04]}  f3 {[%clk 0:00:50]} 55. Re7+ {[%clk 0:00:05]}  Kf2 {[%clk 0:00:50]} 56. Kc4 {[%clk 0:00:04]}  Kf1 {[%clk 0:00:49]} 57. Kc5 {[%clk 0:00:04]}  Rxb7 {[%clk 0:00:47]} 58. Rxb7 {[%clk 0:00:04]}  f2 {[%clk 0:00:48]} 59. Rf7 {[%clk 0:00:05]}  Ke1 {[%clk 0:00:48]} 60. Rxf2 {[%clk 0:00:05]}  Kxf2 {[%clk 0:00:48]} 1/2-1/2


[Site "https://www.chess.com"]

[Event "Titled Tuesday Blitz November 08 Early 2022"]
[White "Fajdetic, Hrvoje"]
[Black "Winkels, Marcel"]
[WhiteFideId "14501945"]
[BlackFideId "1003887"]
[WhiteElo "2172"]
[BlackElo "1900"]
[Result "0-1"]
[Round "08"]
[TimeControl "180+1"]
[Date "2022.11.09"]
[WhiteClock "0:00:02"]
[BlackClock "0:00:38"]

1. b3 {[%clk 0:03:00]}  e5 {[%clk 0:02:56]} 2. Bb2 {[%clk 0:03:00]}  d6 {[%clk 0:02:56]} 3. g3 {[%clk 0:03:01]}  f5 {[%clk 0:02:55]} 4. Bg2 {[%clk 0:03:02]}  Nf6 {[%clk 0:02:55]} 5. d3 {[%clk 0:03:03]}  Be7 {[%clk 0:02:55]} 6. Nd2 {[%clk 0:03:04]}  O-O {[%clk 0:02:54]} 7. e4 {[%clk 0:03:05]}  c6 {[%clk 0:02:52]} 8. Ne2 {[%clk 0:03:05]}  Qe8 {[%clk 0:02:50]} 9. O-O {[%clk 0:03:04]}  Qh5 {[%clk 0:02:50]} 10. h3 {[%clk 0:03:03]}  fxe4 {[%clk 0:02:49]} 11. dxe4 {[%clk 0:03:03]}  Bxh3 {[%clk 0:02:47]} 12. Nc3 {[%clk 0:03:00]}  Qxd1 {[%clk 0:02:29]} 13. Raxd1 {[%clk 0:03:01]}  Bxg2 {[%clk 0:02:29]} 14. Kxg2 {[%clk 0:03:01]}  Na6 {[%clk 0:02:29]} 15. a3 {[%clk 0:03:00]}  Rad8 {[%clk 0:02:26]} 16. Nc4 {[%clk 0:02:54]}  Nc5 {[%clk 0:02:18]} 17. f3 {[%clk 0:02:54]}  Ne6 {[%clk 0:02:16]} 18. Ne2 {[%clk 0:02:52]}  Rd7 {[%clk 0:02:05]} 19. Rd2 {[%clk 0:02:45]}  Rfd8 {[%clk 0:02:03]} 20. Rfd1 {[%clk 0:02:45]}  Kf7 {[%clk 0:01:49]} 21. Bxe5 {[%clk 0:02:32]}  dxe5 {[%clk 0:01:46]} 22. Nxe5+ {[%clk 0:02:32]}  Ke8 {[%clk 0:01:46]} 23. Nxd7 {[%clk 0:02:32]}  Rxd7 {[%clk 0:01:47]} 24. Rxd7 {[%clk 0:02:29]}  Nxd7 {[%clk 0:01:46]} 25. f4 {[%clk 0:02:30]}  Nec5 {[%clk 0:01:35]} 26. Kf3 {[%clk 0:02:29]}  Nf6 {[%clk 0:01:33]} 27. Nc3 {[%clk 0:02:23]}  Ne6 {[%clk 0:01:32]} 28. b4 {[%clk 0:02:19]}  a5 {[%clk 0:01:31]} 29. e5 {[%clk 0:02:16]}  Nd7 {[%clk 0:01:30]} 30. Na2 {[%clk 0:02:09]}  axb4 {[%clk 0:01:29]} 31. axb4 {[%clk 0:02:09]}  Nb6 {[%clk 0:01:27]} 32. c3 {[%clk 0:02:03]}  Nd5 {[%clk 0:01:26]} 33. Ke4 {[%clk 0:02:02]}  g6 {[%clk 0:01:24]} 34. Rxd5 {[%clk 0:02:01]}  cxd5+ {[%clk 0:01:22]} 35. Kxd5 {[%clk 0:02:02]}  Kd7 {[%clk 0:01:19]} 36. c4 {[%clk 0:02:00]}  Ng7 {[%clk 0:01:19]} 37. g4 {[%clk 0:01:58]}  h5 {[%clk 0:01:19]} 38. gxh5 {[%clk 0:01:48]}  gxh5 {[%clk 0:01:17]} 39. Nc3 {[%clk 0:01:47]}  Bxb4 {[%clk 0:01:14]} 40. Ne4 {[%clk 0:01:46]}  Be7 {[%clk 0:01:13]} 41. Nf2 {[%clk 0:01:23]}  Nf5 {[%clk 0:01:11]} 42. Ke4 {[%clk 0:01:21]}  Ke6 {[%clk 0:01:11]} 43. Nh3 {[%clk 0:01:18]}  Ng3+ {[%clk 0:01:07]} 44. Kf3 {[%clk 0:01:16]}  h4 {[%clk 0:01:07]} 45. Kg4 {[%clk 0:01:15]}  Ne2 {[%clk 0:01:06]} 46. Nf2 {[%clk 0:01:13]}  Nd4 {[%clk 0:01:02]} 47. Ne4 {[%clk 0:01:11]}  Nb3 {[%clk 0:00:59]} 48. Nc3 {[%clk 0:00:15]}  Nd2 {[%clk 0:00:54]} 49. c5 {[%clk 0:00:14]}  Nb3 {[%clk 0:00:43]} 50. Ne4 {[%clk 0:00:13]}  Bxc5 {[%clk 0:00:39]} 51. Kxh4 {[%clk 0:00:11]}  Be7+ {[%clk 0:00:39]} 52. Kg4 {[%clk 0:00:10]}  b5 {[%clk 0:00:39]} 53. Nc3 {[%clk 0:00:08]}  b4 {[%clk 0:00:39]} 54. Nb1 {[%clk 0:00:02]}  Nd4 {[%clk 0:00:38]} 0-1


[Site "https://www.chess.com"]

[Event "Titled Tuesday Blitz November 08 Early 2022"]
[White "Firat, Burak"]
[Black "Rosenberg, Evan S"]
[WhiteFideId "6305881"]
[BlackFideId "2019299"]
[WhiteElo "2392"]
[BlackElo "2401"]
[Result "1-0"]
[Round "08"]
[TimeControl "180+1"]
[Date "2022.11.09"]
[WhiteClock "0:00:50"]
[BlackClock "0:00:04"]

1. Nf3 {[%clk 0:02:49]}  d5 {[%clk 0:02:58]} 2. c4 {[%clk 0:02:48]}  d4 {[%clk 0:02:57]} 3. g3 {[%clk 0:02:49]}  Nc6 {[%clk 0:02:55]} 4. Bg2 {[%clk 0:02:47]}  e5 {[%clk 0:02:56]} 5. d3 {[%clk 0:02:48]}  Nge7 {[%clk 0:02:44]} 6. b4 {[%clk 0:02:46]}  Ng6 {[%clk 0:02:39]} 7. b5 {[%clk 0:02:47]}  Nb8 {[%clk 0:02:37]} 8. h4 {[%clk 0:02:47]}  h5 {[%clk 0:02:30]} 9. O-O {[%clk 0:02:47]}  Be7 {[%clk 0:02:25]} 10. e3 {[%clk 0:02:47]}  O-O {[%clk 0:02:22]} 11. exd4 {[%clk 0:02:46]}  exd4 {[%clk 0:02:22]} 12. a4 {[%clk 0:02:46]}  c5 {[%clk 0:02:20]} 13. Nbd2 {[%clk 0:02:44]}  Bg4 {[%clk 0:02:15]} 14. a5 {[%clk 0:02:38]}  Nd7 {[%clk 0:02:11]} 15. Qc2 {[%clk 0:02:38]}  Qc7 {[%clk 0:01:50]} 16. Ne4 {[%clk 0:02:34]}  Nde5 {[%clk 0:01:34]} 17. Nxe5 {[%clk 0:02:30]}  Nxe5 {[%clk 0:01:30]} 18. Bf4 {[%clk 0:02:31]}  f6 {[%clk 0:01:21]} 19. Bxe5 {[%clk 0:02:21]}  Qxe5 {[%clk 0:01:12]} 20. b6 {[%clk 0:02:05]}  axb6 {[%clk 0:01:11]} 21. axb6 {[%clk 0:02:06]}  f5 {[%clk 0:01:01]} 22. Ng5 {[%clk 0:01:50]}  Bxg5 {[%clk 0:00:53]} 23. hxg5 {[%clk 0:01:48]}  Rxa1 {[%clk 0:00:47]} 24. Rxa1 {[%clk 0:01:49]}  f4 {[%clk 0:00:45]} 25. gxf4 {[%clk 0:01:36]}  Qxf4 {[%clk 0:00:40]} 26. Bxb7 {[%clk 0:01:36]}  Qxg5 {[%clk 0:00:36]} 27. f4 {[%clk 0:01:36]}  Rxf4 {[%clk 0:00:32]} 28. Qg2 {[%clk 0:01:30]}  h4 {[%clk 0:00:29]} 29. Ra8+ {[%clk 0:01:17]}  Kh7 {[%clk 0:00:28]} 30. Be4+ {[%clk 0:01:16]}  Rxe4 {[%clk 0:00:27]} 31. Qxe4+ {[%clk 0:01:07]}  Bf5+ {[%clk 0:00:27]} 32. Qg2 {[%clk 0:01:07]}  Qe3+ {[%clk 0:00:23]} 33. Qf2 {[%clk 0:01:07]}  Qg5+ {[%clk 0:00:18]} 34. Kh2 {[%clk 0:01:05]}  Bxd3 {[%clk 0:00:17]} 35. Re8 {[%clk 0:00:53]}  Bxc4 {[%clk 0:00:04]} 36. b7 {[%clk 0:00:50]} 1-0


[Site "https://www.chess.com"]

[Event "Titled Tuesday Blitz November 08 Early 2022"]
[White "Forgacs, Attila Jr."]
[Black "Dehtiarov, Roman"]
[WhiteFideId "773654"]
[BlackFideId "14186640"]
[WhiteElo "2168"]
[BlackElo "2200"]
[Result "0-1"]
[Round "08"]
[TimeControl "180+1"]
[Date "2022.11.09"]
[WhiteClock "0:00:09"]
[BlackClock "0:00:06"]

1. e4 {[%clk 0:03:00]}  e5 {[%clk 0:02:58]} 2. Nf3 {[%clk 0:03:00]}  Nc6 {[%clk 0:02:54]} 3. Bb5 {[%clk 0:03:01]}  a6 {[%clk 0:02:54]} 4. Ba4 {[%clk 0:03:02]}  Nf6 {[%clk 0:02:53]} 5. O-O {[%clk 0:03:02]}  Be7 {[%clk 0:02:42]} 6. Re1 {[%clk 0:03:02]}  b5 {[%clk 0:02:40]} 7. Bb3 {[%clk 0:03:02]}  O-O {[%clk 0:02:37]} 8. a4 {[%clk 0:03:01]}  Rb8 {[%clk 0:02:37]} 9. d3 {[%clk 0:02:59]}  d6 {[%clk 0:02:36]} 10. c3 {[%clk 0:02:59]}  Bg4 {[%clk 0:02:36]} 11. Nbd2 {[%clk 0:02:58]}  Re8 {[%clk 0:02:23]} 12. h3 {[%clk 0:02:58]}  Bh5 {[%clk 0:02:23]} 13. Nf1 {[%clk 0:02:59]}  Bg6 {[%clk 0:02:22]} 14. g4 {[%clk 0:02:59]}  h6 {[%clk 0:02:22]} 15. Ng3 {[%clk 0:03:00]}  Bf8 {[%clk 0:02:20]} 16. Nh4 {[%clk 0:02:57]}  Bh7 {[%clk 0:02:20]} 17. Nhf5 {[%clk 0:02:57]}  Ne7 {[%clk 0:02:18]} 18. axb5 {[%clk 0:02:52]}  axb5 {[%clk 0:02:06]} 19. Ra7 {[%clk 0:02:53]}  Nxf5 {[%clk 0:02:05]} 20. exf5 {[%clk 0:02:50]}  d5 {[%clk 0:02:05]} 21. Qf3 {[%clk 0:02:48]}  Bc5 {[%clk 0:01:51]} 22. Ra2 {[%clk 0:02:42]}  c6 {[%clk 0:01:51]} 23. Be3 {[%clk 0:02:41]}  d4 {[%clk 0:01:49]} 24. Bd2 {[%clk 0:02:35]}  Nd5 {[%clk 0:01:41]} 25. Bxd5 {[%clk 0:02:31]}  cxd5 {[%clk 0:01:40]} 26. Rea1 {[%clk 0:02:22]}  dxc3 {[%clk 0:01:37]} 27. bxc3 {[%clk 0:02:20]}  Qe7 {[%clk 0:01:31]} 28. Ra6 {[%clk 0:02:17]}  e4 {[%clk 0:01:18]} 29. dxe4 {[%clk 0:02:16]}  dxe4 {[%clk 0:01:19]} 30. Qf4 {[%clk 0:02:07]}  f6 {[%clk 0:01:05]} 31. Re6 {[%clk 0:01:57]}  Qd8 {[%clk 0:00:25]} 32. Raa6 {[%clk 0:01:40]}  Rxe6 {[%clk 0:00:18]} 33. Rxe6 {[%clk 0:01:41]}  Kh8 {[%clk 0:00:17]} 34. Nxe4 {[%clk 0:01:40]}  Bf8 {[%clk 0:00:17]} 35. Be3 {[%clk 0:01:35]}  Bg8 {[%clk 0:00:17]} 36. Ra6 {[%clk 0:01:24]}  Qd1+ {[%clk 0:00:17]} 37. Kh2 {[%clk 0:01:21]}  Re8 {[%clk 0:00:17]} 38. Ng3 {[%clk 0:01:15]}  Bd5 {[%clk 0:00:16]} 39. Ra7 {[%clk 0:01:02]}  Bg8 {[%clk 0:00:13]} 40. Qc7 {[%clk 0:00:58]}  Re7 {[%clk 0:00:10]} 41. Qb8 {[%clk 0:00:50]}  Rxa7 {[%clk 0:00:10]} 42. Qxa7 {[%clk 0:00:41]}  Bd5 {[%clk 0:00:06]} 43. Qb8 {[%clk 0:00:37]}  Qf3 {[%clk 0:00:06]} 44. Qxf8+ {[%clk 0:00:15]}  Kh7 {[%clk 0:00:06]} 45. Ne4 {[%clk 0:00:11]}  Bxe4 {[%clk 0:00:06]} 46. Kg1 {[%clk 0:00:09]}  Qg2# {[%clk 0:00:06]} 0-1


[Site "https://www.chess.com"]

[Event "Titled Tuesday Blitz November 08 Early 2022"]
[White "Gareyev, Timur"]
[Black "Tokhirjonova, Gulrukhbegim"]
[WhiteFideId "14200937"]
[BlackFideId "14203626"]
[WhiteElo "2552"]
[BlackElo "2236"]
[Result "1-0"]
[Round "08"]
[TimeControl "180+1"]
[Date "2022.11.09"]
[WhiteClock "0:00:06"]
[BlackClock "0:00:19"]

1. g4 {[%clk 0:03:00]}  d5 {[%clk 0:02:59]} 2. Bg2 {[%clk 0:02:56]}  c5 {[%clk 0:02:58]} 3. c4 {[%clk 0:02:51]}  d4 {[%clk 0:02:58]} 4. b4 {[%clk 0:02:51]}  cxb4 {[%clk 0:02:58]} 5. a3 {[%clk 0:02:48]}  bxa3 {[%clk 0:02:58]} 6. Rxa3 {[%clk 0:02:42]}  e5 {[%clk 0:02:56]} 7. Rg3 {[%clk 0:02:33]}  Nc6 {[%clk 0:02:56]} 8. h4 {[%clk 0:02:32]}  Bd6 {[%clk 0:02:55]} 9. Ba3 {[%clk 0:02:21]}  Nge7 {[%clk 0:02:54]} 10. Nh3 {[%clk 0:02:17]}  Be6 {[%clk 0:02:53]} 11. Bxd6 {[%clk 0:01:34]}  Qxd6 {[%clk 0:02:52]} 12. d3 {[%clk 0:01:35]}  O-O-O {[%clk 0:02:43]} 13. Ng5 {[%clk 0:01:26]}  Bd7 {[%clk 0:02:37]} 14. Nxf7 {[%clk 0:01:24]}  Qb4+ {[%clk 0:02:36]} 15. Nd2 {[%clk 0:01:22]}  Rhf8 {[%clk 0:02:29]} 16. Nxd8 {[%clk 0:01:20]}  Nxd8 {[%clk 0:02:24]} 17. O-O {[%clk 0:01:16]}  Ng6 {[%clk 0:02:21]} 18. Nf3 {[%clk 0:01:10]}  Rf4 {[%clk 0:02:17]} 19. h5 {[%clk 0:01:02]}  Ne7 {[%clk 0:01:57]} 20. Nxe5 {[%clk 0:00:57]}  Be6 {[%clk 0:01:53]} 21. Qc1 {[%clk 0:00:31]}  Rf6 {[%clk 0:01:44]} 22. Qg5 {[%clk 0:00:26]}  Qd6 {[%clk 0:01:36]} 23. c5 {[%clk 0:00:22]}  Qc7 {[%clk 0:01:32]} 24. Qxg7 {[%clk 0:00:14]}  Qxe5 {[%clk 0:01:27]} 25. f4 {[%clk 0:00:10]}  Qxe2 {[%clk 0:00:43]} 26. Qxf6 {[%clk 0:00:09]}  Nec6 {[%clk 0:00:38]} 27. f5 {[%clk 0:00:05]}  Bb3 {[%clk 0:00:32]} 28. Bxc6 {[%clk 0:00:04]}  Nxc6 {[%clk 0:00:31]} 29. Qh8+ {[%clk 0:00:04]}  Kc7 {[%clk 0:00:31]} 30. Qxh7+ {[%clk 0:00:05]}  Kc8 {[%clk 0:00:30]} 31. Qh6 {[%clk 0:00:06]}  Ne7 {[%clk 0:00:27]} 32. Qf4 {[%clk 0:00:05]}  Qb2 {[%clk 0:00:19]} 33. Qf2 {[%clk 0:00:05]}  Qc3 {[%clk 0:00:19]} 34. f6 {[%clk 0:00:06]} 1-0


[Site "https://www.chess.com"]

[Event "Titled Tuesday Blitz November 08 Early 2022"]
[White "Gheorghiu, Calin"]
[Black "Aradhya, Garg"]
[WhiteFideId "1200305"]
[BlackFideId "25006746"]
[WhiteElo "2225"]
[BlackElo "2223"]
[Result "0-1"]
[Round "08"]
[TimeControl "180+1"]
[Date "2022.11.09"]
[WhiteClock "0:01:23"]
[BlackClock "0:02:35"]

1. e4 {[%clk 0:02:28]}  e5 {[%clk 0:02:59]} 2. Nf3 {[%clk 0:02:26]}  Nf6 {[%clk 0:03:00]} 3. Nxe5 {[%clk 0:02:18]}  d6 {[%clk 0:03:00]} 4. Nf3 {[%clk 0:02:18]}  Nxe4 {[%clk 0:03:00]} 5. d3 {[%clk 0:02:16]}  Nf6 {[%clk 0:03:00]} 6. d4 {[%clk 0:02:17]}  d5 {[%clk 0:02:54]} 7. Bd3 {[%clk 0:02:15]}  Bd6 {[%clk 0:02:54]} 8. Qe2+ {[%clk 0:02:14]}  Be6 {[%clk 0:02:54]} 9. Ng5 {[%clk 0:02:12]}  Qe7 {[%clk 0:02:53]} 10. Nxe6 {[%clk 0:02:11]}  Qxe6 {[%clk 0:02:53]} 11. Qxe6+ {[%clk 0:02:09]}  fxe6 {[%clk 0:02:54]} 12. Nd2 {[%clk 0:02:09]}  O-O {[%clk 0:02:54]} 13. Nf3 {[%clk 0:02:08]}  c5 {[%clk 0:02:54]} 14. O-O {[%clk 0:02:00]}  Nc6 {[%clk 0:02:54]} 15. dxc5 {[%clk 0:01:58]}  Bxc5 {[%clk 0:02:54]} 16. c3 {[%clk 0:01:59]}  e5 {[%clk 0:02:53]} 17. Bb5 {[%clk 0:01:58]}  e4 {[%clk 0:02:53]} 18. Ne1 {[%clk 0:01:53]}  Ng4 {[%clk 0:02:51]} 19. Be3 {[%clk 0:01:45]}  Bxe3 {[%clk 0:02:36]} 20. fxe3 {[%clk 0:01:44]}  Nxe3 {[%clk 0:02:37]} 21. Rxf8+ {[%clk 0:01:42]}  Rxf8 {[%clk 0:02:38]} 22. Rc1 {[%clk 0:01:35]}  a6 {[%clk 0:02:35]} 23. Be2 {[%clk 0:01:35]}  d4 {[%clk 0:02:34]} 24. cxd4 {[%clk 0:01:23]}  Nxd4 {[%clk 0:02:35]} 0-1


[Site "https://www.chess.com"]

[Event "Titled Tuesday Blitz November 08 Early 2022"]
[White "Gholami Orimi, Mahdi"]
[Black "Nouri, Alekhine"]
[WhiteFideId "12558486"]
[BlackFideId "5216184"]
[WhiteElo "2330"]
[BlackElo "2151"]
[Result "1-0"]
[Round "08"]
[TimeControl "180+1"]
[Date "2022.11.08"]
[WhiteClock "0:00:34"]
[BlackClock "0:00:04"]

1. d4 {[%clk 0:03:00]}  Nf6 {[%clk 0:02:59]} 2. g3 {[%clk 0:03:01]}  c5 {[%clk 0:02:59]} 3. d5 {[%clk 0:03:01]}  b5 {[%clk 0:02:59]} 4. e4 {[%clk 0:02:59]}  Nxe4 {[%clk 0:02:59]} 5. Bg2 {[%clk 0:03:00]}  Nd6 {[%clk 0:02:58]} 6. Nf3 {[%clk 0:03:01]}  g6 {[%clk 0:02:57]} 7. O-O {[%clk 0:03:01]}  Bg7 {[%clk 0:02:58]} 8. Re1 {[%clk 0:03:02]}  O-O {[%clk 0:02:58]} 9. Nc3 {[%clk 0:03:02]}  b4 {[%clk 0:02:58]} 10. Ne4 {[%clk 0:03:02]}  Nxe4 {[%clk 0:02:57]} 11. Rxe4 {[%clk 0:03:03]}  d6 {[%clk 0:02:58]} 12. Bg5 {[%clk 0:03:03]}  Bf6 {[%clk 0:02:54]} 13. Qd2 {[%clk 0:03:02]}  Nd7 {[%clk 0:02:52]} 14. Rae1 {[%clk 0:03:02]}  Re8 {[%clk 0:02:39]} 15. Rh4 {[%clk 0:02:55]}  Bb7 {[%clk 0:02:34]} 16. Bxf6 {[%clk 0:02:53]}  exf6 {[%clk 0:02:32]} 17. Rhe4 {[%clk 0:02:32]}  Rxe4 {[%clk 0:02:27]} 18. Rxe4 {[%clk 0:02:33]}  f5 {[%clk 0:02:28]} 19. Re1 {[%clk 0:02:31]}  Qf6 {[%clk 0:02:25]} 20. c4 {[%clk 0:02:30]}  a5 {[%clk 0:02:18]} 21. h4 {[%clk 0:02:27]}  a4 {[%clk 0:02:17]} 22. b3 {[%clk 0:02:27]}  axb3 {[%clk 0:02:17]} 23. axb3 {[%clk 0:02:28]}  Nf8 {[%clk 0:02:13]} 24. h5 {[%clk 0:02:13]}  Ra1 {[%clk 0:02:13]} 25. h6 {[%clk 0:02:03]}  Bc8 {[%clk 0:02:09]} 26. Rxa1 {[%clk 0:01:57]}  Qxa1+ {[%clk 0:02:10]} 27. Kh2 {[%clk 0:01:58]}  f6 {[%clk 0:01:59]} 28. Qf4 {[%clk 0:01:54]}  Qa6 {[%clk 0:01:56]} 29. g4 {[%clk 0:01:54]}  Kf7 {[%clk 0:01:19]} 30. g5 {[%clk 0:01:54]}  Nd7 {[%clk 0:01:09]} 31. gxf6 {[%clk 0:01:52]}  Nxf6 {[%clk 0:01:09]} 32. Ng5+ {[%clk 0:01:50]}  Kf8 {[%clk 0:01:09]} 33. Bf3 {[%clk 0:01:45]}  Qb6 {[%clk 0:01:07]} 34. Qc1 {[%clk 0:01:42]}  Qd8 {[%clk 0:01:05]} 35. Kg3 {[%clk 0:01:37]}  Qe7 {[%clk 0:01:03]} 36. Kg2 {[%clk 0:01:16]}  Qe5 {[%clk 0:00:47]} 37. Nh3 {[%clk 0:01:16]}  Bd7 {[%clk 0:00:34]} 38. Qd2 {[%clk 0:01:15]}  Ng8 {[%clk 0:00:28]} 39. Qg5 {[%clk 0:01:12]}  Qf6 {[%clk 0:00:26]} 40. Qf4 {[%clk 0:01:12]}  Qe5 {[%clk 0:00:26]} 41. Qc1 {[%clk 0:01:10]}  Nf6 {[%clk 0:00:19]} 42. Qd2 {[%clk 0:01:08]}  Ne4 {[%clk 0:00:18]} 43. Bxe4 {[%clk 0:01:03]}  Qxe4+ {[%clk 0:00:19]} 44. f3 {[%clk 0:01:03]}  Qd4 {[%clk 0:00:18]} 45. Qxd4 {[%clk 0:00:57]}  cxd4 {[%clk 0:00:19]} 46. Ng5 {[%clk 0:00:57]}  Ke7 {[%clk 0:00:08]} 47. Nxh7 {[%clk 0:00:53]}  Ba4 {[%clk 0:00:07]} 48. Ng5 {[%clk 0:00:53]}  Kf6 {[%clk 0:00:06]} 49. h7 {[%clk 0:00:51]}  Kg7 {[%clk 0:00:06]} 50. Ne6+ {[%clk 0:00:46]}  Kxh7 {[%clk 0:00:06]} 51. Nxd4 {[%clk 0:00:47]}  Bd7 {[%clk 0:00:06]} 52. f4 {[%clk 0:00:47]}  Kg7 {[%clk 0:00:07]} 53. Nc2 {[%clk 0:00:46]}  Kf6 {[%clk 0:00:07]} 54. Nxb4 {[%clk 0:00:47]}  g5 {[%clk 0:00:07]} 55. Kg3 {[%clk 0:00:47]}  gxf4+ {[%clk 0:00:07]} 56. Kxf4 {[%clk 0:00:48]}  Ke7 {[%clk 0:00:07]} 57. Nc2 {[%clk 0:00:48]}  Kd8 {[%clk 0:00:08]} 58. Nd4 {[%clk 0:00:48]}  Kc7 {[%clk 0:00:07]} 59. Nxf5 {[%clk 0:00:48]}  Kb6 {[%clk 0:00:08]} 60. b4 {[%clk 0:00:48]}  Kc7 {[%clk 0:00:07]} 61. Kg5 {[%clk 0:00:47]}  Ba4 {[%clk 0:00:05]} 62. Kf4 {[%clk 0:00:45]}  Bb3 {[%clk 0:00:05]} 63. Ne3 {[%clk 0:00:45]}  Kd7 {[%clk 0:00:05]} 64. Ke4 {[%clk 0:00:46]}  Ba4 {[%clk 0:00:05]} 65. Kd4 {[%clk 0:00:46]}  Kc7 {[%clk 0:00:06]} 66. Kc3 {[%clk 0:00:46]}  Be8 {[%clk 0:00:06]} 67. Nf5 {[%clk 0:00:45]}  Bg6 {[%clk 0:00:05]} 68. Nd4 {[%clk 0:00:45]}  Kd7 {[%clk 0:00:05]} 69. c5 {[%clk 0:00:43]}  dxc5 {[%clk 0:00:05]} 70. bxc5 {[%clk 0:00:44]}  Be4 {[%clk 0:00:05]} 71. Kc4 {[%clk 0:00:45]}  Bg2 {[%clk 0:00:05]} 72. Nb5 {[%clk 0:00:41]}  Bf1+ {[%clk 0:00:05]} 73. Kb4 {[%clk 0:00:42]}  Bg2 {[%clk 0:00:05]} 74. c6+ {[%clk 0:00:41]}  Kc8 {[%clk 0:00:05]} 75. Kc5 {[%clk 0:00:42]}  Kd8 {[%clk 0:00:04]} 76. d6 {[%clk 0:00:42]}  Bh3 {[%clk 0:00:04]} 77. Nd4 {[%clk 0:00:34]}  Kc8 {[%clk 0:00:04]} 78. Kd5 {[%clk 0:00:34]}  Kd8 {[%clk 0:00:04]} 79. Ne6+ {[%clk 0:00:34]} 1-0


[Site "https://www.chess.com"]